fUST/lending_fUST_20250725
["ID","MTS","AMOUNT","RATE_DAILY","PERIOD"]
[374622774,1753384242794,-5347.38219184,0.00019801,2]
[374622775,1753384242804,-820.18136644,0.00019801,2]
[374622776,1753384242813,-500.0,0.000199,2]
[374622777,1753384242823,-305.25448484,0.000199,2]
[374622778,1753384242834,-4306.35562994,0.000199,2]
[374622779,1753384242844,-463.04585057,0.00019901,2]
[374622780,1753384242853,-460.0,0.00019901,2]
[374622781,1753384242862,-460.0,0.00019901,2]
[374622782,1753384242873,-460.0,0.00019901,2]
[374622783,1753384242883,-460.0,0.00019901,2]
[374622784,1753384242894,-460.0,0.00019901,2]
[374622785,1753384242906,-462.33532036,0.00019901,2]
[374622786,1753384242916,-460.0,0.00019901,2]
[374622787,1753384242927,-460.0,0.00019901,2]
[374622788,1753384242936,-461.97428853,0.00019901,2]
[374622789,1753384242947,-342.20601461,0.00019901,2]
[374622790,1753384242959,-335.99609404,0.00019901,2]
[374622791,1753384242969,-460.0,0.00019901,2]
[374622792,1753384242978,-460.0,0.00019901,2]
[374622793,1753384242988,-460.0,0.00019901,2]
[374622794,1753384242997,-460.0,0.00019901,2]
[374622795,1753384243007,-460.0,0.00019901,2]
[374622796,1753384243018,-460.0,0.00019901,2]
[374622797,1753384243028,-460.0,0.00019901,2]
[374622798,1753384243038,-460.0,0.00019901,2]
[374622799,1753384243047,-605.29385071,0.00019901,2]
[374622800,1753384243056,-460.0,0.00019901,2]
[374622801,1753384243065,-460.0,0.00019901,2]
[374622802,1753384243074,-460.0,0.00019901,2]
[374622803,1753384243083,-460.0,0.00019901,2]
[374622804,1753384243093,-460.0,0.00019901,2]
[374622805,1753384243102,-460.0,0.00019901,2]
[374622806,1753384243111,-1245.07,0.00019901,2]
[374622807,1753384243121,-460.0,0.00019901,2]
[374622808,1753384243132,-460.0,0.00019901,2]
[374622809,1753384243142,-877.44,0.00019901,2]
[374622810,1753384243152,-426.63469732,0.00019901,2]
[374622811,1753384243162,-460.0,0.00019901,2]
[374622812,1753384243171,-460.0,0.00019901,2]
[374622813,1753384243181,-482.62687916,0.00019901,2]
[374622814,1753384243190,-460.0,0.00019901,2]
[374622815,1753384243200,-460.0,0.00019901,2]
[374622816,1753384243215,-460.0,0.00019901,2]
[374622817,1753384243228,-460.0,0.00019901,2]
[374622818,1753384243246,-460.0,0.00019901,2]
[374622819,1753384243256,-460.0,0.00019901,2]
[374622820,1753384243265,-235.5873645,0.00019901,2]
[374622821,1753384243276,-864.25,0.00019901,2]
[374622822,1753384243286,-460.0,0.00019901,2]
[374622823,1753384243295,-205.3196186,0.00019901,2]
[374622824,1753384243305,-497.14062364,0.00019901,2]
[374622825,1753384243315,-460.0,0.00019901,2]
[374622826,1753384243324,-460.0,0.00019901,2]
[374622827,1753384243334,-553.18,0.00019901,2]
[374622828,1753384243344,-460.0,0.00019901,2]
[374622829,1753384243354,-460.0,0.00019901,2]
[374622830,1753384243363,-460.0,0.00019901,2]
[374622831,1753384243372,-460.0,0.00019901,2]
[374622832,1753384243381,-460.0,0.00019901,2]
[374622833,1753384243390,-460.0,0.00019901,2]
[374622834,1753384243399,-465.64,0.00019901,2]
[374622835,1753384243409,-460.0,0.00019901,2]
[374622836,1753384243419,-212.28949371,0.00019901,2]
[374622837,1753384243429,-1113.47,0.00019901,2]
[374622838,1753384243438,-480.73,0.00019901,2]
[374622839,1753384243447,-461.31,0.00019901,2]
[374622840,1753384243457,-460.0,0.00019901,2]
[374622841,1753384243466,-460.0,0.00019901,2]
[374622842,1753384243475,-510.44,0.00019901,2]
[374622843,1753384243484,-460.0,0.00019901,2]
[374622844,1753384243493,-460.0,0.00019901,2]
[374622845,1753384243502,-605.94981198,0.00019901,2]
[374622846,1753384243512,-460.0,0.00019901,2]
[374622847,1753384243521,-460.0,0.00019901,2]
[374622848,1753384243532,-464.72,0.00019901,2]
[374622849,1753384243541,-460.0,0.00019901,2]
[374622850,1753384243550,-460.0,0.00019901,2]
[374622851,1753384243559,-460.0,0.00019901,2]
[374622852,1753384243569,-460.0,0.00019901,2]
[374622853,1753384243578,-460.0,0.00019901,2]
[374622855,1753384243588,-559.33238142,0.00019901,2]
[374622856,1753384243597,-920.18,0.00019901,2]
[374622857,1753384243606,-460.0,0.00019901,2]
[374622858,1753384243616,-460.0,0.00019901,2]
[374622860,1753384243625,-3132.28,0.00019901,2]
[374622862,1753384243634,-460.0,0.00019901,2]
[374622863,1753384243645,-3148.8,0.00019901,2]
[374622864,1753384243655,-460.0,0.00019901,2]
[374622865,1753384243667,-1325.74,0.00019901,2]
[374622866,1753384243683,-460.0,0.00019901,2]
[374622867,1753384243699,-460.0,0.00019901,2]
[374622869,1753384243709,-460.0,0.00019901,2]
[374622870,1753384243719,-460.0,0.00019901,2]
[374622871,1753384243730,-460.0,0.00019901,2]
[374622872,1753384243740,-801.02,0.00019901,2]
[374622873,1753384243749,-460.0,0.00019901,2]
[374622874,1753384243758,-460.0,0.00019901,2]
[374622875,1753384243767,-1262.05,0.00019901,2]
[374622876,1753384243778,-460.0,0.00019901,2]
[374622877,1753384243788,-610.09,0.00019901,2]
[374622878,1753384243797,-460.0,0.00019901,2]
[374622879,1753384243807,-575.94,0.00019901,2]
[374622880,1753384243816,-2655.55,0.00019901,2]
[374622881,1753384243825,-872.2,0.00019901,2]
[374622882,1753384243835,-473.72615782,0.00019901,2]
[374622883,1753384243843,-460.0,0.00019901,2]
[374622884,1753384243853,-460.0,0.00019901,2]
[374622885,1753384243862,-4546.8,0.00019901,2]
[374622887,1753384243871,-460.0,0.00019901,2]
[374622888,1753384243881,-2803.82,0.00019901,2]
[374622889,1753384243890,-460.0,0.00019901,2]
[374622890,1753384243899,-460.0,0.00019901,2]
[374622891,1753384243908,-838.8,0.00019901,2]
[374622892,1753384243917,-460.0,0.00019901,2]
[374622893,1753384243927,-460.0,0.00019901,2]
[374622895,1753384243936,-460.0,0.00019901,2]
[374622897,1753384243945,-460.0,0.00019901,2]
[374622898,1753384243955,-460.0,0.00019901,2]
[374622899,1753384243964,-684.53,0.00019901,2]
[374622900,1753384243973,-476.23733361,0.00019901,2]
[374622901,1753384243982,-2888.36,0.00019901,2]
[374622902,1753384243991,-460.0,0.00019901,2]
[374622903,1753384244000,-460.0,0.00019901,2]
[374622904,1753384244010,-460.0,0.00019901,2]
[374622905,1753384244020,-460.0,0.00019901,2]
[374622907,1753384244031,-1671.5,0.00019901,2]
[374622908,1753384244040,-1152.42,0.00019901,2]
[374622909,1753384244050,-1006.82,0.00019901,2]
[374622910,1753384244060,-1310.29,0.00019901,2]
[374622911,1753384244070,-465.53488581,0.00019901,2]
[374622912,1753384244079,-460.0,0.00019901,2]
[374622913,1753384244088,-460.0,0.00019901,2]
[374622914,1753384244097,-2883.24,0.00019901,2]
[374622915,1753384244107,-580.47,0.00019901,2]
[374622916,1753384244117,-460.0,0.00019901,2]
[374622917,1753384244126,-477.47747056,0.00019901,2]
[374622918,1753384244136,-460.0,0.00019901,2]
[374622919,1753384244145,-753.75,0.00019901,2]
[374622920,1753384244154,-460.0,0.00019901,2]
[374622921,1753384244164,-987.14,0.00019901,2]
[374622922,1753384244173,-460.0,0.00019901,2]
[374622923,1753384244183,-663.42,0.00019901,2]
[374622924,1753384244192,-460.0,0.00019901,2]
[374622925,1753384244202,-894.42,0.00019901,2]
[374622926,1753384244211,-460.0,0.00019901,2]
[374622927,1753384244220,-460.0,0.00019901,2]
[374622928,1753384244230,-460.0,0.00019901,2]
[374622929,1753384244239,-767.36,0.00019901,2]
[374622930,1753384244248,-460.0,0.00019901,2]
[374622931,1753384244257,-662.47,0.00019901,2]
[374622932,1753384244267,-460.0,0.00019901,2]
[374622933,1753384244276,-460.0,0.00019901,2]
[374622934,1753384244286,-460.0,0.00019901,2]
[374622935,1753384244295,-460.0,0.00019901,2]
[374622936,1753384244305,-460.0,0.00019901,2]
[374622937,1753384244315,-3602.07,0.00019901,2]
[374622938,1753384244325,-460.0,0.00019901,2]
[374622939,1753384244334,-499.28,0.00019901,2]
[374622940,1753384244344,-858.77,0.00019901,2]
[374622941,1753384244353,-460.0,0.00019901,2]
[374622942,1753384244362,-460.0,0.00019901,2]
[374622943,1753384244372,-460.0,0.00019901,2]
[374622944,1753384244383,-526.29,0.00019901,2]
[374622945,1753384244393,-5901.46,0.00019901,2]
[374622947,1753384244402,-460.0,0.00019901,2]
[374622948,1753384244412,-460.0,0.00019901,2]
[374622949,1753384244422,-460.0,0.00019901,2]
[374622950,1753384244431,-460.0,0.00019901,2]
[374622951,1753384244441,-460.0,0.00019901,2]
[374622952,1753384244450,-460.0,0.00019901,2]
[374622953,1753384244459,-460.0,0.00019901,2]
[374622954,1753384244470,-1225.72,0.00019901,2]
[374622955,1753384244479,-3762.69,0.00019901,2]
[374622956,1753384244489,-460.0,0.00019901,2]
[374622957,1753384244498,-460.0,0.00019901,2]
[374622958,1753384244507,-1125.09,0.00019901,2]
[374622959,1753384244516,-1612.68,0.00019901,2]
[374622960,1753384244526,-460.0,0.00019901,2]
[374622961,1753384244536,-946.17,0.00019901,2]
[374622962,1753384244545,-460.0,0.00019901,2]
[374622963,1753384244554,-460.0,0.00019901,2]
[374622964,1753384244564,-1815.56,0.00019901,2]
[374622965,1753384244574,-5542.35,0.00019901,2]
[374622966,1753384244584,-460.0,0.00019901,2]
[374622967,1753384244593,-1315.25,0.00019901,2]
[374622968,1753384244603,-463.15,0.00019901,2]
[374622969,1753384244613,-460.0,0.00019901,2]
[374622970,1753384244623,-522.07,0.00019901,2]
[374622971,1753384244632,-597.3,0.00019901,2]
[374622972,1753384244642,-460.0,0.00019901,2]
[374622973,1753384244654,-5162.43,0.00019901,2]
[374622974,1753384244664,-946.41,0.00019901,2]
[374622975,1753384244674,-2648.97,0.00019901,2]
[374622976,1753384244685,-499.36,0.00019901,2]
[374622977,1753384244696,-504.65145491,0.00019973,2]
[374622978,1753384244706,-500.0,0.00019973,2]
[374622979,1753384244715,-500.39169446,0.00019973,2]
[374622980,1753384244727,-500.0,0.00019973,2]
[374622981,1753384244738,-500.0,0.00019973,2]
[374622982,1753384244748,-500.0,0.00019973,2]
[374622983,1753384244847,-173.482,0.0002,2]
[374622984,1753384244859,-4306.35562987,0.00020072,2]
[374622985,1753384244868,-500.0,0.00020173,2]
[374622986,1753384244878,-500.0,0.00020173,2]
[374622987,1753384244887,-500.0,0.00020173,2]
[374622988,1753384244896,-160.11934557,0.00020173,2]
[374622989,1753384244905,-500.69980759,0.00020173,2]
[374622990,1753384244916,-500.35759823,0.00020173,2]
[374622991,1753384244927,-500.0,0.00020173,2]
[374622992,1753384244936,-500.0,0.00020173,2]
[374622993,1753384244946,-500.0,0.00020173,2]
[374622994,1753384244956,-500.0,0.00020173,2]
[374622995,1753384244966,-500.0,0.00020173,2]
[374622996,1753384244976,-500.0,0.00020173,2]
[374622997,1753384244986,-576.27187642,0.00020173,2]
[374622998,1753384244996,-500.0,0.00020173,2]
[374622999,1753384245006,-500.0,0.00020173,2]
[374623000,1753384245016,-500.0,0.00020173,2]
[374623001,1753384245025,-500.0,0.00020173,2]
[374623002,1753384245037,-500.0,0.00020174,2]
[374623003,1753384245046,-460.0,0.00020175,2]
[374623004,1753384245055,-460.0,0.00020175,2]
[374623005,1753384245064,-460.0,0.00020175,2]
[374623006,1753384245074,-342.56833699,0.00020175,2]
[374623007,1753384245084,-424.87060069,0.00020175,2]
[374623008,1753384245093,-460.0,0.00020175,2]
[374623009,1753384245103,-460.0,0.00020175,2]
[374623010,1753384245112,-460.0,0.00020175,2]
[374623011,1753384245122,-467.53853254,0.00020175,2]
[374623012,1753384245132,-385.76382827,0.00020175,2]
[374623013,1753384245141,-460.0,0.00020175,2]
[374623014,1753384245151,-565.03141817,0.00020175,2]
[374623015,1753384245161,-460.0,0.00020175,2]
[374623016,1753384245170,-460.0,0.00020175,2]
[374623017,1753384245179,-460.0,0.00020175,2]
[374623018,1753384245189,-460.0,0.00020175,2]
[374623019,1753384245199,-460.0,0.00020175,2]
[374623020,1753384245209,-1245.07,0.00020175,2]
[374623021,1753384245218,-460.0,0.00020175,2]
[374623022,1753384245228,-460.0,0.00020175,2]
[374623023,1753384245238,-877.44,0.00020175,2]
[374623024,1753384245247,-460.0,0.00020175,2]
[374623025,1753384245256,-511.22715543,0.00020175,2]
[374623026,1753384245266,-460.0,0.00020175,2]
[374623027,1753384245276,-460.0,0.00020175,2]
[374623028,1753384245289,-460.0,0.00020175,2]
[374623029,1753384245298,-460.0,0.00020175,2]
[374623030,1753384245308,-460.0,0.00020175,2]
[374623031,1753384245318,-864.25,0.00020175,2]
[374623032,1753384245328,-207.97523436,0.00020175,2]
[374623033,1753384245337,-460.0,0.00020175,2]
[374623034,1753384245347,-460.0,0.00020175,2]
[374623035,1753384245356,-553.18,0.00020175,2]
[374623036,1753384245366,-460.0,0.00020175,2]
[374623037,1753384245375,-460.0,0.00020175,2]
[374623038,1753384245384,-460.0,0.00020175,2]
[374623039,1753384245393,-460.0,0.00020175,2]
[374623040,1753384245403,-460.0,0.00020175,2]
[374623041,1753384245413,-465.64,0.00020175,2]
[374623042,1753384245422,-460.0,0.00020175,2]
[374623043,1753384245432,-1113.47,0.00020175,2]
[374623044,1753384245441,-480.73,0.00020175,2]
[374623045,1753384245451,-461.31,0.00020175,2]
[374623046,1753384245460,-460.0,0.00020175,2]
[374623047,1753384245469,-510.44,0.00020175,2]
[374623048,1753384245479,-460.0,0.00020175,2]
[374623049,1753384245489,-460.0,0.00020175,2]
[374623050,1753384245498,-460.0,0.00020175,2]
[374623051,1753384245508,-460.0,0.00020175,2]
[374623052,1753384245518,-464.72,0.00020175,2]
[374623053,1753384245527,-460.0,0.00020175,2]
[374623054,1753384245539,-460.0,0.00020175,2]
[374623055,1753384245549,-460.0,0.00020175,2]
[374623056,1753384245559,-920.18,0.00020175,2]
[374623057,1753384245568,-460.0,0.00020175,2]
[374623058,1753384245577,-460.0,0.00020175,2]
[374623059,1753384245586,-3132.28,0.00020175,2]
[374623060,1753384245595,-460.0,0.00020175,2]
[374623061,1753384245605,-3148.8,0.00020175,2]
[374623062,1753384245614,-1325.74,0.00020175,2]
[374623063,1753384245623,-460.0,0.00020175,2]
[374623064,1753384245633,-460.0,0.00020175,2]
[374623065,1753384245643,-460.0,0.00020175,2]
[374623066,1753384245655,-460.0,0.00020175,2]
[374623067,1753384245665,-460.0,0.00020175,2]
[374623068,1753384245674,-801.02,0.00020175,2]
[374623069,1753384245684,-578.69,0.00020175,2]
[374623070,1753384245694,-1262.05,0.00020175,2]
[374623071,1753384245704,-610.09,0.00020175,2]
[374623072,1753384245713,-460.0,0.00020175,2]
[374623073,1753384245724,-2655.55,0.00020175,2]
[374623074,1753384245735,-872.2,0.00020175,2]
[374623075,1753384245744,-504.96527413,0.00020175,2]
[374623076,1753384245754,-460.0,0.00020175,2]
[374623077,1753384245764,-4546.8,0.00020175,2]
[374623078,1753384245773,-2803.82,0.00020175,2]
[374623079,1753384245783,-460.0,0.00020175,2]
[374623080,1753384245793,-460.0,0.00020175,2]
[374623081,1753384245803,-838.8,0.00020175,2]
[374623082,1753384245813,-460.0,0.00020175,2]
[374623083,1753384245822,-460.0,0.00020175,2]
[374623084,1753384245832,-460.0,0.00020175,2]
[374623085,1753384245842,-460.0,0.00020175,2]
[374623086,1753384245852,-684.53,0.00020175,2]
[374623087,1753384245861,-2888.36,0.00020175,2]
[374623089,1753384245871,-460.0,0.00020175,2]
[374623090,1753384245880,-460.0,0.00020175,2]
[374623091,1753384245889,-460.0,0.00020175,2]
[374623092,1753384245899,-1671.5,0.00020175,2]
[374623093,1753384245909,-1152.42,0.00020175,2]
[374623094,1753384245918,-1006.82,0.00020175,2]
[374623095,1753384245928,-1310.29,0.00020175,2]
[374623096,1753384245938,-460.0,0.00020175,2]
[374623097,1753384245946,-460.0,0.00020175,2]
[374623098,1753384245956,-2883.24,0.00020175,2]
[374623099,1753384245965,-580.47,0.00020175,2]
[374623100,1753384245974,-460.0,0.00020175,2]
[374623101,1753384245983,-753.75,0.00020175,2]
[374623102,1753384245993,-460.0,0.00020175,2]
[374623103,1753384246003,-987.14,0.00020175,2]
[374623104,1753384246013,-663.42,0.00020175,2]
[374623105,1753384246023,-894.42,0.00020175,2]
[374623106,1753384246034,-460.0,0.00020175,2]
[374623107,1753384246045,-767.36,0.00020175,2]
[374623108,1753384246054,-662.47,0.00020175,2]
[374623109,1753384246064,-460.0,0.00020175,2]
[374623110,1753384246074,-460.0,0.00020175,2]
[374623112,1753384246083,-460.0,0.00020175,2]
[374623114,1753384246093,-165.98017348,0.00020175,2]
[374623115,1753384246102,-3602.07,0.00020175,2]
[374623116,1753384246112,-460.0,0.00020175,2]
[374623117,1753384246121,-499.28,0.00020175,2]
[374623118,1753384246131,-858.77,0.00020175,2]
[374623119,1753384246140,-460.0,0.00020175,2]
[374623120,1753384246150,-424.94696185,0.00020175,2]
[374623121,1753384246159,-526.29,0.00020175,2]
[374623122,1753384246169,-5901.46,0.00020175,2]
[374623123,1753384246179,-460.0,0.00020175,2]
[374623124,1753384246188,-460.0,0.00020175,2]
[374623125,1753384246197,-460.0,0.00020175,2]
[374623126,1753384246207,-460.0,0.00020175,2]
[374623127,1753384246217,-460.0,0.00020175,2]
[374623128,1753384246227,-460.0,0.00020175,2]
[374623129,1753384246236,-460.0,0.00020175,2]
[374623130,1753384246246,-1225.72,0.00020175,2]
[374623131,1753384246255,-3762.69,0.00020175,2]
[374623132,1753384246264,-460.0,0.00020175,2]
[374623133,1753384246274,-460.0,0.00020175,2]
[374623134,1753384246284,-1125.09,0.00020175,2]
[374623135,1753384246294,-1612.68,0.00020175,2]
[374623136,1753384246304,-460.0,0.00020175,2]
[374623137,1753384246314,-946.17,0.00020175,2]
[374623138,1753384246323,-460.0,0.00020175,2]
[374623139,1753384246332,-460.0,0.00020175,2]
[374623140,1753384246342,-1815.56,0.00020175,2]
[374623141,1753384246351,-5542.35,0.00020175,2]
[374623142,1753384246360,-460.0,0.00020175,2]
[374623143,1753384246369,-1315.25,0.00020175,2]
[374623144,1753384246378,-460.0,0.00020175,2]
[374623145,1753384246387,-522.07,0.00020175,2]
[374623146,1753384246396,-460.0,0.00020175,2]
[374623147,1753384246406,-5162.43,0.00020175,2]
[374623148,1753384246416,-946.41,0.00020175,2]
[374623149,1753384246425,-2648.97,0.00020175,2]
[374623150,1753384246435,-499.36,0.00020175,2]
[374623151,1753384246444,-193.137719,0.00020187,2]
[374623152,1753384246455,-265.61737601,0.00020221,2]
[374623153,1753384246464,-500.0,0.00020221,2]
[374623154,1753384246474,-1000.0,0.00020221,2]
[374623155,1753384246483,-1000.0,0.00020221,2]
[374623156,1753384246492,-1000.0,0.00020221,2]
[374623157,1753384246501,-1000.0,0.00020221,2]
[374623158,1753384246510,-1000.0,0.00020221,2]
[374623159,1753384246521,-4306.35562987,0.00020245,2]
[374623160,1753384246534,-820.18136643,0.00020349,2]
[374623161,1753384246543,-4306.35562987,0.00020417,3]
[374623162,1753384246553,-500.0,0.00020448,2]
[374623163,1753384246562,-460.0,0.00020449,2]
[374623164,1753384246571,-460.0,0.00020449,2]
[374623165,1753384246580,-460.0,0.00020449,2]
[374623166,1753384246590,-452.87118701,0.00020449,2]
[374623167,1753384246599,-460.0,0.00020449,2]
[374623169,1753384246609,-460.0,0.00020449,2]
[374623170,1753384246619,-460.0,0.00020449,2]
[374623171,1753384246628,-369.30558187,0.00020449,2]
[374623172,1753384246637,-460.0,0.00020449,2]
[374623173,1753384246648,-1245.07,0.00020449,2]
[374623174,1753384246658,-460.0,0.00020449,2]
[374623175,1753384246667,-460.0,0.00020449,2]
[374623176,1753384246677,-877.44,0.00020449,2]
[374623177,1753384246688,-460.0,0.00020449,2]
[374623178,1753384246782,-394.30966042,0.00020449,2]
[374623179,1753384246792,-460.0,0.00020449,2]
[374623180,1753384246802,-864.25,0.00020449,2]
[374623181,1753384246811,-460.0,0.00020449,2]
[374623182,1753384246821,-553.18,0.00020449,2]
[374623183,1753384246830,-460.0,0.00020449,2]
[374623184,1753384246839,-460.0,0.00020449,2]
[374623185,1753384246848,-522.06,0.00020449,2]
[374623186,1753384246858,-460.0,0.00020449,2]
[374623187,1753384246867,-465.64,0.00020449,2]
[374623188,1753384246877,-460.0,0.00020449,2]
[374623189,1753384246886,-1113.47,0.00020449,2]
[374623190,1753384246895,-480.73,0.00020449,2]
[374623191,1753384246904,-461.31,0.00020449,2]
[374623192,1753384246914,-460.0,0.00020449,2]
[374623193,1753384246923,-510.44,0.00020449,2]
[374623194,1753384246932,-460.0,0.00020449,2]
[374623195,1753384246942,-516.81,0.00020449,2]
[374623196,1753384246951,-460.0,0.00020449,2]
[374623197,1753384246960,-460.0,0.00020449,2]
[374623198,1753384246969,-464.72,0.00020449,2]
[374623199,1753384246978,-460.0,0.00020449,2]
[374623200,1753384246987,-257.46,0.00020449,2]
[374623201,1753384246996,-920.18,0.00020449,2]
[374623202,1753384247006,-439.94917438,0.00020449,2]
[374623203,1753384247015,-3132.28,0.00020449,2]
[374623204,1753384247025,-3148.8,0.00020449,2]
[374623205,1753384247035,-1325.74,0.00020449,2]
[374623206,1753384247045,-460.0,0.00020449,2]
[374623207,1753384247054,-286.10940943,0.00020449,2]
[374623208,1753384247063,-460.0,0.00020449,2]
[374623209,1753384247073,-460.0,0.00020449,2]
[374623210,1753384247083,-801.02,0.00020449,2]
[374623211,1753384247092,-1262.05,0.00020449,2]
[374623212,1753384247101,-610.09,0.00020449,2]
[374623213,1753384247110,-460.0,0.00020449,2]
[374623214,1753384247120,-2655.55,0.00020449,2]
[374623215,1753384247130,-872.2,0.00020449,2]
[374623216,1753384247140,-460.0,0.00020449,2]
[374623217,1753384247149,-4546.8,0.00020449,2]
[374623218,1753384247158,-2803.82,0.00020449,2]
[374623219,1753384247168,-460.0,0.00020449,2]
[374623220,1753384247177,-838.8,0.00020449,2]
[374623221,1753384247187,-460.0,0.00020449,2]
[374623222,1753384247196,-460.0,0.00020449,2]
[374623223,1753384247205,-460.0,0.00020449,2]
[374623224,1753384247214,-487.09285089,0.00020449,2]
[374623225,1753384247223,-684.53,0.00020449,2]
[374623226,1753384247232,-2888.36,0.00020449,2]
[374623227,1753384247243,-460.0,0.00020449,2]
[374623228,1753384247253,-460.0,0.00020449,2]
[374623229,1753384247262,-460.0,0.00020449,2]
[374623230,1753384247272,-1671.5,0.00020449,2]
[374623231,1753384247282,-1152.42,0.00020449,2]
[374623232,1753384247291,-1006.82,0.00020449,2]
[374623233,1753384247300,-1310.29,0.00020449,2]
[374623234,1753384247309,-460.0,0.00020449,2]
[374623235,1753384247319,-460.0,0.00020449,2]
[374623236,1753384247328,-2883.24,0.00020449,2]
[374623237,1753384247338,-580.47,0.00020449,2]
[374623238,1753384247347,-753.75,0.00020449,2]
[374623239,1753384247356,-460.0,0.00020449,2]
[374623240,1753384247365,-987.14,0.00020449,2]
[374623241,1753384247374,-663.42,0.00020449,2]
[374623242,1753384247383,-460.0,0.00020449,2]
[374623243,1753384247393,-894.42,0.00020449,2]
[374623244,1753384247403,-767.36,0.00020449,2]
[374623245,1753384247412,-662.47,0.00020449,2]
[374623246,1753384247421,-460.0,0.00020449,2]
[374623247,1753384247431,-460.0,0.00020449,2]
[374623248,1753384247440,-460.0,0.00020449,2]
[374623249,1753384247450,-3602.07,0.00020449,2]
[374623250,1753384247459,-460.0,0.00020449,2]
[374623251,1753384247469,-499.28,0.00020449,2]
[374623252,1753384247478,-858.77,0.00020449,2]
[374623253,1753384247488,-460.0,0.00020449,2]
[374623254,1753384247497,-526.29,0.00020449,2]
[374623255,1753384247507,-5901.46,0.00020449,2]
[374623256,1753384247516,-460.0,0.00020449,2]
[374623257,1753384247525,-460.0,0.00020449,2]
[374623258,1753384247535,-460.0,0.00020449,2]
[374623259,1753384247544,-460.0,0.00020449,2]
[374623260,1753384247554,-1225.72,0.00020449,2]
[374623261,1753384247563,-460.0,0.00020449,2]
[374623262,1753384247572,-3762.69,0.00020449,2]
[374623263,1753384247581,-460.0,0.00020449,2]
[374623264,1753384247591,-1125.09,0.00020449,2]
[374623265,1753384247600,-1612.68,0.00020449,2]
[374623266,1753384247609,-460.0,0.00020449,2]
[374623267,1753384247619,-946.17,0.00020449,2]
[374623268,1753384247628,-460.0,0.00020449,2]
[374623269,1753384247637,-460.0,0.00020449,2]
[374623270,1753384247650,-1815.56,0.00020449,2]
[374623271,1753384247659,-5542.35,0.00020449,2]
[374623272,1753384247669,-460.0,0.00020449,2]
[374623273,1753384247678,-1315.25,0.00020449,2]
[374623274,1753384247688,-460.0,0.00020449,2]
[374623275,1753384247698,-522.07,0.00020449,2]
[374623276,1753384247707,-460.0,0.00020449,2]
[374623277,1753384247718,-5162.43,0.00020449,2]
[374623278,1753384247729,-946.41,0.00020449,2]
[374623279,1753384247739,-2648.97,0.00020449,2]
[374623280,1753384247748,-499.36,0.00020449,2]
[374623281,1753384247758,-500.0,0.00020521,2]
[374623282,1753384247767,-305.2746736,0.00020521,2]
[374623283,1753384247777,-4306.35562987,0.0002059,3]
[374623284,1753384247788,-500.0,0.00020591,2]
[374623285,1753384247797,-500.0,0.00020592,2]
[374623286,1753384247806,-500.0,0.00020592,2]